[Event "14th BPB Limburg Open 2022"]
[Site "Maastricht"]
[Date "2022.06.06"]
[Round "7.6"]
[White "Van Meegen, Ruud"]
[Black "Fischer, Daniel"]
[Result "1/2-1/2"]
[ECO "D02"]
[WhiteElo "2275"]
[BlackElo "2367"]
[Annotator "TA"]
[PlyCount "112"]
[EventDate "2022.06.03"]
[EventType "swiss"]
[EventCountry "NED"]
[SourceTitle "playchess.com"]
[Source "ChessBase"]
[SourceQuality "1"]
[TimeControl "7200+15"]

{[%evp 9,112,24,45,28,26,24,16,26,31,10,65,6,33,10,10,10,20,12,12,8,24,-4,45,0,0,-11,-5,-47,-52,-44,-53,-55,-44,-41,-40,-37,-16,-52,-70,-73,-74,-83,-53,-50,0,-5,-10,-3,22,22,293,39,22,20,54,-14,-13,-15,-16,-61,-61,-79,-45,-50,-51,-92,-83,-102,0,0,0,0,97,103,102,114,94,96,88,67,93,89,292,18,41,-20,-17,-16,-15,-19,-18,-17,-17,-21,-8,-8,-8,-8,-8,-8,-8,-8,-8,-14,-9]} 1. Nf3 {[%emt 0:00:15]} d5 {[%emt 0:00:15]} 2. g3 {[%emt 0:00:09]} Nd7 {[%emt 0:00:26]} 3. d4 {[%emt 0:00:37]} Nb6 {[%emt 0:00:14]} 4. Bg2 {[%emt 0:00:15]} Bf5 {[%emt 0:00:14]} 5. O-O {[%emt 0:05:22]} e6 {[%emt 0:00:08]} 6. b3 {[%emt 0:03:37] D02: 1 d4 d5 2 Nf3 sidelines, including 2...Nf6 3 g3 and 2...Nf6 3 Bf4.} (6. Ne5 {feels hotter.} Bd6 7. Nc3 Nf6 8. f3) 6... Nf6 {[%emt 0:04:59]} 7. Bb2 {[%emt 0:02:53]} c6 {[%emt 0:02:45]} 8. Nbd2 {[%emt 0:00:53]} a5 {[%emt 0:03:20][%cal Ba7a5,Ba5a4,Ba4a3][%mdl 32]} 9. Ne5 {[%emt 0:14:40]} Be7 {[%emt 0:06:11]} ({Better is} 9... h5 $11) 10. c4 {[%emt 0:05:15]} (10. f3 $14) 10... O-O {[%emt 0:01:43] [#]} 11. Rc1 $146 {[%emt 0:01:22]} ({Predecessor:} 11. a3 h6 12. Rc1 Nfd7 13. Ndf3 Be4 14. Nxd7 Nxd7 15. Nd2 Bxg2 16. Kxg2 f5 17. e3 {0-1 (42) Praggnanandhaa,R (2608)-Maghsoodloo,P (2698) Chess.com INT 2021}) 11... a4 {[%emt 0:03:10]} 12. c5 {[%emt 0:03:29]} Nbd7 {[%emt 0:05:28]} 13. b4 {[%emt 0:00:28]} a3 {[%emt 0:06:57]} 14. Ba1 {[%emt 0:00:08]} Qc7 {[%emt 0:01:02]} 15. Re1 {[%emt 0:10:15]} Rfc8 {[%emt 0:06:40]} (15... Rfb8 $11 {might be stronger.}) 16. Qb3 {[%emt 0:01:43]} (16. f3 $5 {[%cal Re2e4]}) 16... b6 {[%emt 0:03:23]} 17. Qc3 {[%emt 0:20:47]} bxc5 {[%emt 0:09:35]} 18. bxc5 {[%emt 0:02:41]} Nxe5 {[%emt 0:08:28]} 19. dxe5 {[%emt 0:00:21]} Nd7 {[%emt 0:00:04]} 20. e4 {[%emt 0:10:47]} Bg6 {[%emt 0:03:25]} 21. Qd4 {[%emt 0:00:44]} ({Of course not} 21. exd5 cxd5 22. Nb3 (22. c6 Nc5 $17) 22... Nxc5 $17) 21... Qa7 {[%emt 0:03:03][%cal Re7c5]} 22. Nb3 {[%emt 0:00:39]} Rab8 {[%emt 0:08:38][%cal Ob8b3]} 23. exd5 {[%emt 0:10:20]} cxd5 {[%emt 0:00:47][%cal Re7c5]} 24. c6 {[%emt 0:00:13]} Nb6 {[%emt 0:00:21]} 25. Bf1 {[%emt 0:00:28]} Rc7 {[%emt 0:01:50]} 26. Qe3 {[%emt 0:07:10]} Nc8 {[%emt 0:07:47]} (26... Qa8 $1 $15) 27. Bd4 $132 {[%emt 0:00:09][%mdl 2048] White is fighting back} Qa8 {[%emt 0:01:51]} 28. Nc5 $1 {[%emt 0:03:26]} ({Not} 28. Qc3 $2 Bb4 29. Qe3 Bxe1 30. Qxe1 Rxc6 31. Rxc6 Qxc6 $19) 28... Rxc6 {[%emt 0:05:54][%cal Ob8b2]} (28... Rb2 $5) 29. Rc3 $1 {[%emt 0:00:05]} Qa5 {[%emt 0:04:02][%mdl 8192]} (29... Bxc5 $11 {and Black stays safe.} 30. Bxc5 Rc7) 30. Rxa3 $2 {[%emt 0:02:36]} (30. Nd7 $18 Rxc3 31. Bxc3) 30... Qd8 $1 $14 {[%emt 0:00:11]} 31. Rb3 {[%emt 0:02:27]} Rcb6 {[%emt 0:10:08]} 32. Rxb6 {[%emt 0:00:47]} (32. Na6 $14 Rxb3 33. axb3) 32... Nxb6 $11 {[%emt 0:15:16]} 33. Na6 {[%emt 0:13:29]} Rb7 {[%emt 0:00:00]} 34. Qb3 {[%emt 0:00:00] [#] Against Nc4. aiming for Rc1.} Qc8 {[%emt 0:00:00] Against Rc1} 35. Bb5 {[%emt 0:00:00]} (35. Bxb6 Qc6) 35... Nc4 {[%emt 0:00:00]} (35... Bc2 $5 {[%cal Rc2b3]} 36. Qc3 Qxc3 37. Bxc3 Na4 38. Bxa4 Bxa4 $17) 36. a4 {[%emt 0:00:00]} Nd2 {[%emt 0:00:00]} 37. Qe3 {[%emt 0:00:00]} Qc2 {[%emt 0:00:00] Threatens to win with ...Be4.} ({Much weaker is} 37... Nc4 $6 38. Rc1 $11) 38. Bc3 {[%emt 0:00:00]} Nb3 {[%emt 0:00:00]} (38... Nc4 $17 39. Qd4 Bf8) 39. Re2 {[%emt 0:00:00]} Qd1+ {[%emt 0:00:00]} 40. Re1 {[%emt 0:00:02]} Qg4 {[%emt 0:00:00] [#]} (40... Qc2 $11 {keeps the balance.}) 41. Bc6 $1 $16 {[%emt 0:00:36]} d4 {[%emt 0:00:00]} 42. Bxd4 {[%emt 0:00:05]} Nxd4 {[%emt 0:00:00]} 43. Bxb7 {[%emt 0:00:17]} Nc2 {[%emt 0:00:00][%csl LRa4,LRe1,LRe3]} 44. Qe2 {[%emt 0:00:32]} Qxa4 {[%emt 0:00:00]} 45. Rd1 {[%emt 0:00:35]} Nd4 $2 {[%emt 0:00:00]} (45... h5 $16 {keeps fighting.}) 46. Qd2 $2 {[%emt 0:00:13]} (46. Qg4 $18 Qb5 47. Qxd4 Qxb7 {[#]} 48. Qd8+ $3 {[%mdl 512]} Bf8 49. Nc5) 46... Bh5 {[%emt 0:00:00][%cal Bg6h5,Bh5d1,Bd1a4,Ba4b5][%mdl 32] [#]} 47. Qxd4 {[%emt 0:00:22]} Qxd1+ {[%emt 0:00:00] The position is equal.} (47... Bxd1 48. Qxa4) 48. Qxd1 {[%emt 0:00:03]} Bxd1 $14 {[%emt 0:00:00][%mdl 4096] Endgame KBB-KBN} 49. Nc7 {[%emt 0:00:11]} Bc5 {[%emt 0:00:00]} 50. Kg2 {[%emt 0:00:05]} Ba4 {[%emt 0:00:00]} 51. f4 {[%emt 0:00:17]} Bb6 {[%emt 0:00:00] A strong pair of Bishops.} 52. Na6 {[%emt 0:00:09]} Bb5 {[%emt 0:00:15]} 53. Nb4 {[%emt 0:00:10]} Bc5 {[%emt 0:00:12]} 54. Nc2 {[%emt 0:00:03]} Be2 {[%emt 0:01:42]} 55. Be4 {[%emt 0:00:29]} h6 {[%emt 0:00:13]} 56. h4 {[%emt 0:00:12]} Kf8 {[%emt 0:00:42] Weighted Error Value: White=0.30/Black=0.28 (precise)} 1/2-1/2

[Event "14th BPB Limburg Open 2022"]
[Site "Maastricht"]
[Date "2022.06.06"]
[Round "7.7"]
[White "Gurevich, Mikhail"]
[Black "Van Cappellen, Jonas"]
[Result "1-0"]
[ECO "A28"]
[WhiteElo "2573"]
[BlackElo "2208"]
[Annotator "TA"]
[PlyCount "83"]
[EventDate "2022.06.03"]
[EventType "swiss"]
[EventCountry "NED"]
[SourceTitle "playchess.com"]
[Source "ChessBase"]
[SourceQuality "1"]
[TimeControl "7200+15"]

{[%evp 12,83,22,15,25,16,14,29,49,20,58,52,61,57,43,31,26,25,29,39,45,49,64,29,26,32,47,8,8,0,18,8,29,13,19,0,11,-26,6,14,65,45,53,36,50,70,120,40,181,171,184,191,204,153,170,154,161,177,239,221,222,63,64,59,198,200,201,201,195,200,199,203,679,676]} 1. c4 {[%emt 0:00:07]} e5 {[%emt 0:00:09]} 2. Nc3 {[%emt 0:00:07]} Nf6 {[%emt 0:00:08]} 3. Nf3 {[%emt 0:00:05]} Nc6 {[%emt 0:00:08]} 4. a3 {[%emt 0:00:02]} d5 {[%emt 0:03:49]} 5. cxd5 {[%emt 0:00:47]} Nxd5 {[%emt 0:00:08]} 6. Qc2 {[%emt 0:00:03]} Be7 {[%emt 0:05:56]} 7. e3 {[%emt 0:00:49]} Nxc3 {[%emt 0:06:37] A28: English Opening: Four Knights Variation.} 8. bxc3 {[%emt 0:02:01]} O-O {[%emt 0:00:20]} 9. d4 {[%emt 0:00:05]} Bf6 {[%emt 0:03:11] White has an edge.} 10. Bd3 {[%emt 0:04:07] [#]} h6 $146 {[%emt 0:07:25]} ({Predecessor:} 10... g6 11. O-O a6 12. Be4 Re8 13. Bb2 exd4 14. cxd4 Bd7 15. Rfd1 Qe7 16. Bxc6 Bxc6 {1-0 (47) Suba,M (2418)-Kolbak,J (2273) Kamena Vourla 2012}) 11. O-O {[%emt 0:03:49]} Re8 {[%emt 0:02:12]} 12. Rb1 {[%emt 0:04:53]} g6 {[%emt 0:03:05]} 13. Nd2 {[%emt 0:08:30][%cal Od4d5]} Bg7 {[%emt 0:01:37]} 14. a4 {[%emt 0:00:18]} b6 {[%emt 0:11:08]} 15. Ba3 {[%emt 0:02:43]} Bb7 {[%emt 0:08:11]} 16. Rfd1 {[%emt 0:07:05][%cal Od4d5]} (16. Nb3 {looks sharper.} Qh4 17. Bb5 Nxd4 18. exd4 Bxg2 19. f3) 16... Qd7 {[%emt 0:08:12]} 17. Bb5 {[%emt 0:03:50][%cal Od4d5]} (17. d5 $5 {[%cal Rd5c6]} Na5 18. e4 $14) 17... a6 {[%emt 0:08:23]} 18. Bf1 {[%emt 0:00:45][%cal Od4d5]} (18. Bc4 {with more complications.} Na5 19. Ba2 exd4 20. cxd4 Qc6 21. Qxc6 Bxc6 22. Rdc1) 18... Rad8 {[%emt 0:01:17]} 19. Nf3 {[%emt 0:01:33]} Qe6 $1 {[%emt 0:06:44]} 20. Bb2 {[%emt 0:02:03]} Re7 {[%emt 0:11:27]} 21. Ba1 {[%emt 0:12:51]} Red7 {[%emt 0:04:01]} 22. Re1 {[%emt 0:01:17]} Qd6 {[%emt 0:06:15]} 23. Nd2 {[%emt 0:08:01]} Na5 {[%emt 0:01:20]} 24. Nf3 {[%emt 0:04:08]} Nc6 {[%emt 0:01:16]} (24... Bxf3 $5 25. gxf3 c5 $11) 25. Qc1 {[%emt 0:00:47]} Kh7 {[%emt 0:01:28]} (25... exd4 $11 26. cxd4 Re7) 26. c4 $1 $14 {[%emt 0:03:08][%cal Bc3c4,Bc4c5][%mdl 32]} exd4 {[%emt 0:00:30]} 27. c5 $1 {[%emt 0:00:11]} Qd5 {[%emt 0:01:00]} 28. exd4 {[%emt 0:00:30]} Na5 {[%emt 0:09:19] [#] Inhibits Bc4.} (28... Nxd4 $2 29. Bxd4 Bxd4 30. Nxd4 Qxd4 31. c6 $18) (28... Re7 $14) 29. Bc3 {[%emt 0:07:36]} ({Don't play} 29. cxb6 Nb3 30. Qc3 (30. Rxb3 Qxb3 31. d5 cxb6 $17) 30... Nxa1 $14) ({White should try} 29. Ne5 $1 $16) 29... Bc6 {[%emt 0:04:55]} (29... Nb3 $2 30. Qc2 $18) (29... Qf5 $14) 30. cxb6 $18 {[%emt 0:00:37]} ({Not} 30. Bxa6 Nb3 31. Qc2 Bxa4 $11) 30... cxb6 {[%emt 0:00:07]} 31. Rxb6 {[%emt 0:00:11]} Nc4 {[%emt 0:01:56]} 32. Rxa6 {[%emt 0:04:22]} Bb7 {[%emt 0:00:30]} 33. Ra7 {[%emt 0:00:19]} Rc8 {[%emt 0:00:25]} 34. Qf4 {[%emt 0:00:12]} Nd6 {[%emt 0:02:20]} (34... Bc6 {is a better defense.} 35. Rxd7 Bxd7) 35. Bb4 {[%emt 0:02:01]} Nf5 {[%emt 0:00:46]} 36. Ra5 $2 {[%emt 0:03:57]} ({White should play} 36. Bc5 $18) 36... Qb3 $14 {[%emt 0:00:18] Threatens to win with ...Bxf3.} 37. Rxf5 {[%emt 0:06:54]} Qxb4 {[%emt 0:00:17]} (37... Bxf3 $14 38. Rb5 (38. gxf3 Qxb4 39. Re4 Qb1 $17) 38... Bc6) 38. Rxf7 $18 {[%emt 0:03:49]} Rxf7 {[%emt 0:00:41]} 39. Qxf7 {[%emt 0:00:12]} Bxf3 {[%emt 0:01:04]} 40. Re7 {[%emt 0:00:07][%csl Ge7][%cal Rf7g7]} Qxd4 {[%emt 0:00:05] White must now prevent ...Bd5.} 41. Qxf3 {[%emt 0:06:27] Strongly threatening a5.} Qxa4 {[%emt 0:00:05] [#]} (41... Rc5 42. g3 Rf5) 42. Rxg7+ $1 {[%emt 0:00:10][%mdl 512] Weighted Error Value: White=0.16 (very precise) /Black=0.47} 1-0

[Event "14th BPB Limburg Open 2022"]
[Site "Maastricht"]
[Date "2022.06.06"]
[Round "7.8"]
[White "Bentel, Robin"]
[Black "Ernst, Sipke"]
[Result "0-1"]
[ECO "D24"]
[WhiteElo "2218"]
[BlackElo "2547"]
[Annotator "TA"]
[PlyCount "64"]
[EventDate "2022.06.03"]
[EventType "swiss"]
[EventCountry "NED"]
[SourceTitle "playchess.com"]
[Source "ChessBase"]
[SourceQuality "1"]
[TimeControl "7200+15"]

{[%evp 9,64,28,40,40,50,50,50,38,41,53,51,42,54,46,63,26,16,0,0,-27,-16,-2,0,0,0,0,8,0,0,0,4,13,106,106,129,100,116,66,93,87,112,46,37,44,119,122,109,-74,-70,-216,-232,-520,-501,-725,-724,-701,-643]} 1. d4 {[%emt 0:00:07]} Nf6 {[%emt 0:00:11]} 2. c4 {[%emt 0:00:18]} e6 {[%emt 0:00:38]} 3. Nf3 {[%emt 0:00:21]} d5 {[%emt 0:00:42]} 4. Nc3 {[%emt 0:00:27]} dxc4 {[%emt 0:01:55]} 5. e4 {[%emt 0:01:30]} b5 {[%emt 0:00:05]} 6. e5 {[%emt 0:00:53] D24: Queen's Gambit Accepted: 3 Nf3 Nf6 4 Nc3.} Nd5 {[%emt 0:00:05]} 7. Nxb5 {[%emt 0:00:20]} Nb6 {[%emt 0:00:06]} 8. Be2 {[%emt 0:01:17] White is slightly better.} Nc6 $1 {[%emt 0:00:15] The main line 8...Nc6 scores better than 8...Be7.} 9. O-O {[%emt 0:00:41]} Bb7 {[%emt 0:01:36]} 10. Be3 {[%emt 0:00:42]} Qd7 {[%emt 0:01:44]} 11. Nc3 {[%emt 0:06:15]} Be7 {[%emt 0:02:33] [#]} 12. Qd2 $146 {[%emt 0:03:36]} ({Predecessor:} 12. Rc1 g5 13. Bxg5 Rg8 14. Bxe7 Nxe7 15. Ne1 O-O-O 16. Bf3 Qxd4 17. Bxb7+ Kxb7 18. Qf3+ {0-1 (57) Radjabov,T (2765)-Firouzja,A (2759) Paris 2021}) 12... O-O {[%emt 0:03:37]} 13. Rad1 {[%emt 0:04:39]} Rfd8 {[%emt 0:00:17]} 14. h4 {[%emt 0:00:45]} Nb4 {[%emt 0:05:59]} 15. Ng5 {[%emt 0:10:19]} Rab8 {[%emt 0:05:00]} 16. a3 {[%emt 0:03:06]} N4d5 {[%emt 0:01:10]} 17. Qc2 {[%emt 0:00:58]} g6 {[%emt 0:01:15]} 18. Bc1 {[%emt 0:06:08]} Nxc3 {[%emt 0:03:35]} 19. Qxc3 {[%emt 0:01:35]} Bd5 {[%emt 0:15:57]} 20. h5 {[%emt 0:11:15]} h6 {[%emt 0:01:24]} (20... Na4 $11 {keeps the balance.} 21. Qh3 Bxg5 22. Bxg5 Nxb2) 21. Nh3 $1 $16 {[%emt 0:01:21]} g5 {[%emt 0:01:26]} 22. f4 $1 {[%emt 0:05:02][%cal Rf4g5]} g4 {[%emt 0:00:04]} 23. Bxg4 {[%emt 0:01:40]} (23. Nf2 $1 $16 {[%cal Rf2g4]}) 23... Na4 {[%emt 0:08:39]} 24. Qg3 {[%emt 0:00:14] Strongly threatening Bxe6+.} Rb3 {[%emt 0:00:42] [#]} 25. Be3 {[%emt 0:06:04]} (25. Rf3 $1 $16 {[%mdl 512] Black must now prevent Bxe6+.} Kh8 (25... Rxf3 26. Bxf3+) 26. Rxb3 cxb3 27. f5 exf5 28. Bf3) 25... Kh8 $14 {[%emt 0:02:03]} 26. f5 {[%emt 0:02:00]} exf5 {[%emt 0:10:41]} (26... Nxb2 $2 27. fxe6 fxe6 28. Rf7 $1 $18 (28. Qf4 Bf8 $16)) (26... Rg8 $1 $14 27. fxe6 Bxe6 28. Bxe6 Qxe6) 27. Bxf5 $16 {[%emt 0:08:01]} Qc6 {[%emt 0:01:14] Threatens to win with ...Rg8.} 28. e6 $2 {[%emt 0:19:19] [#]} (28. Nf4 $16 {[%cal Oe5e6] aiming for e6!} Rxb2 29. Qh3 (29. Nxd5 Qxd5 30. Bg4 Rb3 $11)) 28... Rg8 $1 $36 {[%emt 0:11:42][%mdl 2048] White is under pressure.} 29. Bg6 {[%emt 0:04:05] Now White is beyond hope.} Qxe6 $19 {[%emt 0:04:41] Chess con chili.} (29... fxg6 {gets mated.} 30. Qe5+) 30. Rxf7 {[%emt 0:03:13]} (30. Nf4 Qd6 31. Nxd5 Qxd5 32. Qxc7 (32. Qf4 $2 Bg5 $19)) 30... Qxf7 {[%emt 0:02:09] Black is clearly winning.} (30... Qxe3+ 31. Qxe3 Rxg6 32. Qe5+ Kg8 33. hxg6 Bxf7 34. Qxe7 Bxg6 35. Rf1) 31. Bxf7 {[%emt 0:02:09][%csl Gf7][%cal Rg3g8]} Rxg3 {[%emt 0:00:07]} 32. Bxd5 {[%emt 0:00:06]} Rbxe3 {[%emt 0:00:37] Weighted Error Value: White=0.43/Black=0.12 (very precise)} 0-1

[Event "14th BPB Limburg Open 2022"]
[Site "Maastricht"]
[Date "2022.06.06"]
[Round "7.9"]
[White "Sankalp Gupta"]
[Black "Strating, Sybolt"]
[Result "1-0"]
[ECO "B17"]
[WhiteElo "2505"]
[BlackElo "2295"]
[Annotator "TA"]
[PlyCount "55"]
[EventDate "2022.06.03"]
[EventType "swiss"]
[EventCountry "NED"]
[SourceTitle "playchess.com"]
[Source "ChessBase"]
[SourceQuality "1"]
[TimeControl "7200+15"]

{[%evp 21,55,16,0,29,25,0,112,99,84,87,98,97,109,76,105,128,174,143,140,104,528,535,872,866,1841,1840,1817,1793,1801,1844,1455,1427,1385,1385,1560,1474]} 1. e4 {[%emt 0:05:46]} c6 {[%emt 0:00:06]} 2. d4 {[%emt 0:00:12]} d5 {[%emt 0:00:06]} 3. Nd2 {[%emt 0:00:12][%cal Bb1d2,Bd2e4,Be4g5][%mdl 32]} dxe4 {[%emt 0:00:14]} 4. Nxe4 {[%emt 0:00:02]} Nd7 {[%emt 0:00:12]} 5. Ng5 {[%emt 0:00:11]} Ngf6 {[%emt 0:00:18]} 6. Bd3 {[%emt 0:00:11]} e6 {[%emt 0:00:51]} 7. N1f3 {[%emt 0:00:06]} Bd6 {[%emt 0:00:41]} 8. Qe2 {[%emt 0:00:06]} h6 {[%emt 0:00:45]} 9. Ne4 {[%emt 0:01:53]} Nxe4 {[%emt 0:00:09]} 10. Qxe4 {[%emt 0:00:05]} Qc7 {[%emt 0:00:16]} 11. O-O {[%emt 0:01:13]} b6 {[%emt 0:00:47]} 12. Qg4 {[%emt 0:02:30] B17: Caro-Kann: Modern Line (4...Nd7).} Kf8 {[%emt 0:00:23]} 13. b3 {[%emt 0:02:21]} g5 {[%emt 0:10:43] [#]} (13... Nf6 $11 {remains equal.} 14. Qh4 Bb7) 14. Qh3 $1 $16 {[%emt 0:07:41] White is better.} Kg7 {[%emt 0:11:39]} 15. Bb2 {[%emt 0:01:20]} Nf6 {[%emt 0:00:28]} 16. Ne5 {[%emt 0:00:48] Inhibits g4.} Nd5 {[%emt 0:11:13]} 17. g3 $36 {[%emt 0:07:16][%mdl 2048] [#] Prevents Nf4. Threatens to win with f4. White is really pushing. White is more active.} Bxe5 $146 {[%emt 0:19:33]} ({Predecessor:} 17... h5 18. Rae1 f6 19. f4 fxe5 20. fxg5 Bd7 21. dxe5 Bc5+ 22. Kh1 Raf8 23. Rf6 Qc8 {0-1 (40) Durarbayli,V (2456)-Shreyansh,D (2236) Kemer 2009}) 18. dxe5 {[%emt 0:06:29] Strongly threatening f4.} Bb7 {[%emt 0:00:45]} (18... c5 $16) 19. f4 $18 {[%emt 0:27:43]} gxf4 {[%emt 0:11:28]} 20. Be4 {[%emt 0:00:07] [#] And now c4 would win. A strong pair of Bishops.} fxg3 $2 {[%emt 0:01:25][%mdl 8192] This move loses the game for Black.} (20... c5 $16) 21. c4 {[%emt 0:10:15] White is clearly winning.} gxh2+ {[%emt 0:06:04]} 22. Kxh2 {[%emt 0:00:21]} f5 {[%emt 0:08:25]} 23. Rg1+ {[%emt 0:03:37]} Kf8 {[%emt 0:00:15]} 24. cxd5 {[%emt 0:00:28]} cxd5 {[%emt 0:01:04]} 25. Ba3+ {[%emt 0:02:09]} Ke8 {[%emt 0:00:54]} 26. Qh5+ {[%emt 0:00:13]} Qf7 {[%emt 0:00:32]} 27. Bf3 {[%emt 0:00:10] White wants to mate with Qxf7+.} Rh7 {[%emt 0:05:57]} 28. Qxf7+ {[%emt 0:00:26] Weighted Error Value: White=0.05 (flawless) /Black=0.56} 1-0

[Event "14th BPB Limburg Open 2022"]
[Site "Maastricht"]
[Date "2022.06.06"]
[Round "7.10"]
[White "De Jong, Tom"]
[Black "Roebers, Eline"]
[Result "1/2-1/2"]
[ECO "B22"]
[WhiteElo "2174"]
[BlackElo "2369"]
[Annotator "TA"]
[PlyCount "51"]
[EventDate "2022.06.03"]
[EventType "swiss"]
[EventCountry "NED"]
[SourceTitle "playchess.com"]
[Source "ChessBase"]
[SourceQuality "1"]
[TimeControl "7200+15"]

{[%evp 13,51,10,8,0,18,0,19,13,14,7,16,16,25,4,4,-8,0,0,0,-11,-7,-14,6,6,10,6,14,12,11,0,0,-10,-8,-22,0,-38,-33,-29,-33,-42]} 1. e4 {[%emt 0:00:04][%cal Be2e4,Be4e5][%mdl 32]} c5 {[%emt 0:00:03]} 2. c3 {[%emt 0:00:05]} Nf6 {[%emt 0:00:03]} 3. e5 {[%emt 0:00:04]} Nd5 {[%emt 0:00:02]} 4. Nf3 {[%emt 0:00:07]} e6 {[%emt 0:00:06]} 5. d4 {[%emt 0:02:56]} cxd4 {[%emt 0:00:04]} 6. cxd4 {[%emt 0:00:12]} d6 {[%emt 0:00:02]} 7. Bc4 {[%emt 0:04:37]} Be7 {[%emt 0:00:41]} 8. O-O {[%emt 0:00:07] B22: Sicilian: 2 c3.} O-O {[%emt 0:00:03]} 9. Qe2 {[%emt 0:01:46]} b6 {[%emt 0:00:26]} 10. Rd1 {[%emt 0:01:54] The position is equal.} Bb7 {[%emt 0:00:45]} 11. Bxd5 {[%emt 0:00:32]} exd5 {[%emt 0:02:45]} 12. Nc3 {[%emt 0:01:45]} Na6 {[%emt 0:02:56][%cal Bb8a6,Ba6c7,Bc7e6][%mdl 32]} 13. Bf4 {[%emt 0:11:38]} dxe5 {[%emt 0:05:54] [#]} 14. Bxe5 $146 {[%emt 0:13:55]} ({Predecessor:} 14. dxe5 Qd7 15. a3 Nc5 16. Nd4 Ne6 17. Be3 Rad8 18. Qg4 Bc5 19. b4 Bxd4 20. Bxd4 {½-½ (34) Cziko,E (2447)-Sneppe,H (2436) ICCF email 2020}) 14... Nc7 {[%emt 0:07:17]} 15. Rac1 {[%emt 0:07:20] [#] Bxc7 is the strong threat.} Ne6 {[%emt 0:03:20]} 16. h3 {[%emt 0:04:45]} Re8 {[%emt 0:01:06]} 17. Qd3 {[%emt 0:00:20]} a6 {[%emt 0:03:32]} 18. Na4 {[%emt 0:03:36]} f6 {[%emt 0:16:36]} 19. Bg3 {[%emt 0:00:30]} Bd6 {[%emt 0:03:51]} 20. Bxd6 {[%emt 0:07:58]} Qxd6 {[%emt 0:00:08]} 21. Qa3 {[%emt 0:02:42]} Rad8 {[%emt 0:03:35]} 22. Qxd6 {[%emt 0:05:22]} Rxd6 {[%emt 0:00:04]} 23. Rc3 {[%emt 0:11:42]} Rc8 {[%emt 0:14:01]} 24. Rdc1 {[%emt 0:04:41]} Rc4 {[%emt 0:00:57]} 25. b3 {[%emt 0:04:51]} Rxc3 {[%emt 0:00:06]} 26. Rxc3 {[%emt 0:00:13] Weighted Error Value: White=0.07 (flawless) /Black=0.04 (flawless)} 1/2-1/2

[Event "14th BPB Limburg Open 2022"]
[Site "Maastricht"]
[Date "2022.06.06"]
[Round "7.11"]
[White "Keetman, Maaike"]
[Black "Lenaerts, Lennert"]
[Result "0-1"]
[ECO "C77"]
[WhiteElo "2160"]
[BlackElo "2362"]
[Annotator "TA"]
[PlyCount "66"]
[EventDate "2022.06.03"]
[EventType "swiss"]
[EventCountry "NED"]
[SourceTitle "playchess.com"]
[Source "ChessBase"]
[SourceQuality "1"]
[TimeControl "7200+15"]

{[%evp 13,66,3,20,20,20,30,23,0,14,0,0,0,0,-12,0,0,60,0,0,0,15,-109,-110,-97,-106,-114,-55,-115,-125,-192,-197,-185,-193,-187,-181,-263,-237,-321,-318,-310,-313,-304,-298,-595,-595,-595,-575,-758,-747,-735,-725,-645,-633,-827,-595]} 1. e4 {[%emt 0:00:03]} e5 {[%emt 0:01:27]} 2. Nf3 {[%emt 0:00:09]} Nc6 {[%emt 0:00:04]} 3. Bb5 {[%emt 0:00:07]} a6 {[%emt 0:00:04]} 4. Ba4 {[%emt 0:00:05]} Nf6 {[%emt 0:00:03]} 5. d3 {[%emt 0:00:06]} b5 {[%emt 0:02:46]} 6. Bb3 {[%emt 2:01:15]} Bc5 {[%emt 1:57:21]} 7. c3 {[%emt 0:00:15] now scores much better than the old 7.0-0.} d6 {[%emt 0:00:15]} 8. Bg5 {[%emt 0:00:00] C77: Ruy Lopez: 3...a6 4 Ba4 Nf6, unusual lines.} h6 {[%emt 0:00:00]} 9. Bh4 {[%emt 0:00:00]} Be6 {[%emt 0:00:00] [#]} 10. a4 $146 {[%emt 0:00:00] White has an edge.} ({Predecessor:} 10. d4 Bxb3 11. axb3 exd4 12. cxd4 Bb4+ 13. Nbd2 O-O 14. O-O Bxd2 15. Qxd2 Nxe4 16. Qc2 {1-0 (32) Pichot,A (2625)-Kantor,G (2575) Warsaw 2021}) 10... g5 {[%emt 0:00:00]} 11. Bxe6 {[%emt 0:00:00]} fxe6 {[%emt 0:00:00]} 12. Bg3 {[%emt 0:01:15]} b4 {[%emt 0:01:15]} 13. a5 {[%emt 0:00:00]} bxc3 {[%emt 0:00:00]} 14. bxc3 {[%emt 0:00:00]} Ne7 {[%emt 0:00:00]} (14... Nh5 $11) 15. Qa4+ {[%emt 0:00:00]} (15. Nbd2 $14) 15... Qd7 $1 $11 {[%emt 0:00:00]} 16. Qc4 {[%emt 0:00:00]} Ba7 {[%emt 0:00:00]} 17. h4 {[%emt 0:00:00]} (17. Nbd2 $11 {keeps the balance.}) 17... g4 $17 {[%emt 0:00:00]} 18. Nh2 {[%emt 0:00:00]} Rg8 {[%emt 0:00:00] Black is more active.} 19. O-O {[%emt 0:00:00] [#]} d5 {[%emt 0:00:00]} (19... Nh5 $1 $17 {[%cal Rh5g3]} 20. Kh1 Nc6) 20. Qa4 {[%emt 0:00:00]} (20. Qa2 $1 $15) 20... Nh5 $36 {[%emt 0:00:00][%mdl 2048] Black is in control.} 21. Kh1 {[%emt 0:00:00]} (21. Bxe5 $17 {might work better.} Nc6 22. Bd4 Nxd4 23. cxd4) 21... Nxg3+ $19 {[%emt 0:00:00]} 22. fxg3 {[%emt 0:00:00][%cal Oh2g4]} Qxa4 {[%emt 0:00:00]} 23. Rxa4 {[%emt 0:00:00]} h5 {[%emt 0:00:00]} 24. Rf6 {[%emt 0:00:00]} (24. Nd2 $142) 24... Rb8 {[%emt 0:00:00]} 25. Nd2 {[%emt 0:00:00]} Rb2 {[%emt 0:00:00]} 26. Nhf1 {[%emt 0:00:00]} Rg6 {[%emt 0:00:00]} 27. Rxg6 {[%emt 0:00:00]} Nxg6 {[%emt 0:00:00]} 28. Rb4 $2 {[%emt 0:00:00]} (28. Ra1) 28... Rxb4 {[%emt 0:00:00] Black is clearly winning.} 29. cxb4 {[%emt 0:00:00]} Ne7 {[%emt 0:00:00] Threatens to win with ...Nc6.} 30. Nb3 {[%emt 0:00:00]} Nc6 {[%emt 0:00:00]} 31. Nc5 {[%emt 0:00:00]} Bxc5 {[%emt 0:00:00]} 32. bxc5 {[%emt 0:00:00]} Nxa5 {[%emt 0:00:00] [#] Hoping for ...Nb3.} 33. Ne3 {[%emt 0:00:00]} c6 {[%emt 0:00:00] Weighted Error Value: White=0.55/Black=0.09 (flawless)} 0-1